Cogmind - Beta 16 @@@ ROGUE MODE // 2025.12.07 @ 14:40:04 Player: Akamichi1342 Result: Destroyed by G-47 Trooper with Particle Gun Performance ------------- Evolutions (0) 0 Regions Visited (1) 200 Robots Destroyed (20) 100 Value Destroyed (488) 488 Prototype IDs (0) 0 Alien Tech Used (0) 0 Bonus (0) 0 TOTAL SCORE: 788 Bonus ------- None Cogmind --------- Core Integrity 0/250 Matter 300/300 Energy 100/100 System Corruption 0% Temperature Cool (9) Movement Core (350) Ox6 Location -10/Materials Parts ------- > --- POWER (1) -------- (None) > --- PROPULSION (2) --- (None) > --- UTILITY (2) ------ Large Storage Unit > --- WEAPON (2) ------- (None) > --- INVENTORY (15) --- Light Treads Targeting Computer Targeting Computer Targeting Computer Targeting Computer Targeting Computer Hardened Light Armor Plating Hardened Light Armor Plating Hardened Light Armor Plating Hacking Suite Peak State ------------ > --- POWER ------------ Light Nuclear Core > --- PROPULSION ------- Light Treads Light Treads > --- UTILITY ---------- Large Storage Unit Hardened Light Armor Plating > --- WEAPON ----------- Assault Rifle Assault Rifle > --- INVENTORY -------- Light Treads Targeting Computer Targeting Computer Targeting Computer Targeting Computer Targeting Computer Hardened Light Armor Plating Hardened Light Armor Plating Hardened Light Armor Plating Hacking Suite [Rating: 11] Favorites ----------- Power Light Ion Engine Engine Light Ion Engine Power Core Light Nuclear Core Propulsion Light Treads Treads Light Treads Utility Hardened Light Armor Plating Storage Small Storage Unit Protection Hardened Light Armor Plating Weapon Assault Rifle Ballistic Gun Assault Rifle Build | -11 -10 ------- Run | Yrd Mat Slots Evolved . | . . Power . | . . Propulsion . | . . Utility . | . . Weapon . | . . Parts Attached 14 | 6 8 Power 4 | 1 3 Engine 3 | 1 2 Core 1 | . 1 Reactor . | . . Propulsion 4 | 2 2 Treads 4 | 2 2 Leg . | . . Wheel . | . . Hover . | . . Flight . | . . Utility 4 | 1 3 Device . | . . Storage 3 | 1 2 Processor . | . . Hackware . | . . Protection 1 | . 1 Artifact . | . . Weapon 2 | 2 . Energy Gun . | . . Energy Cannon . | . . Ballistic Gun 2 | 2 . Ballistic Cannon . | . . Launcher . | . . Special Weapon . | . . Impact Weapon . | . . Slashing Weapon . | . . Piercing Weapon . | . . Special Melee Weapon . | . . Unidentified Prototypes . | . . Parts Lost 8 | . 8 Power 3 | . 3 Propulsion 2 | . 2 Utility 1 | . 1 Weapon 2 | . 2 Highest Loss Streak 6 | . 6 To Critical Strikes . | . . Average Backups 6 | . 6 Power . | . . Propulsion . | . . Utility 5 | . 6 Weapon . | . . Tool/Special . | . . Unused Backups 10 | . 10 Power . | . . Propulsion . | . . Utility 10 | . 10 Weapon . | . . Tool/Special . | . . Average Slot Usage (%) 89 | . 89 Engine 9 | . 9 Core 2 | . 2 Treads 27 | . 27 Storage 14 | . 14 Protection 7 | . 7 Ballistic Gun 27 | . 27 Peak Build Rating 11 | 6 11 Average Rating 7 | 4 7 On Entrance 3 | . 6 Avg Prop Armor Cover (%) . | . . Naked Turns . | . . Heaviest Build 34 | 12 34 Greatest Support 40 | 40 40 Greatest Overweight (x) . | . . Average Overweight (x) . | . . Largest Inventory Capacity 15 | 8 15 Average Capacity 10 | 7 10 Most Carried 10 | . 10 Average Carried 6 | . 6 Final Capacity 15 | 8 15 Final Carried 10 | . 10 Class Distribution -------------------- 100% | Mutant Dominant Class ---------------- Mutant | -10/Materials Resources | -11 -10 ----------- Run | Yrd Mat Matter Collected 636 | 222 414 Remotely . | . . Salvage Created 602 | . 602 Parts 42 | . 42 Haulers Intercepted 1 | . 1 Recyclers Shooed 1 | . 1 Parts Field Recycled . | . . Retrieved Matter . | . . Parts Self-Destructed . | . . Prevented . | . . Parts Restored . | . . Kills | -11 -10 ------- Run | Yrd Mat Combat Hostiles Destroyed 15 | . 15 Guns 15 | . 15 Classes Destroyed 6 | . 6 Hauler 1 | . 1 Operator 3 | . 3 Watcher 1 | . 1 Swarmer 5 | . 5 Grunt 9 | . 9 Subdweller 1 | . 1 Best Kill Streak 6 | . 6 Combat Bots Only 5 | . 5 Max Kills in Single Turn 1 | . 1 Gunslinging . | . . Exploded . | . . Melee . | . . Uniques/NPCs Destroyed . | . . Combat | -11 -10 -------- Run | Yrd Mat Hostile Shots Fired 116 | . 116 Missed 26 | . 26 Hits 90 | . 90 Projectile 90 | . 90 AOE 2 | . 2 Critical Strikes 1 | . 1 Damage Taken 1201 | . 1201 Core 254 | . 254 Absorbed by Shields . | . . Core Remaining (%) 100 | 100 . Volleys Fired 63 | . 63 Largest 2 | . 2 Hottest 40 | . 40 Shots Fired 113 | . 113 Gun 113 | . 113 Cannon . | . . Launcher . | . . Special . | . . Kinetic 113 | . 113 Thermal . | . . Explosive . | . . Electromagnetic . | . . Robot Hit Streak 9 | . 9 Robot Miss Streak 4 | . 4 Penetration Max . | . . Secondary Targets 1 | . 1 Max Gunslinging Chain 1 | . 1 Shots Hit Robots 80 | . 80 Core Hits 39 | . 39 Critical Kills 1 | . 1 Critical Parts Destroyed 1 | . 1 Critical Strikes 2 | . 2 Destroy 2 | . 2 Melee Attacks . | . . Impact . | . . Slashing . | . . Piercing . | . . Sneak Attacks . | . . Combat Hostiles . | . . Follow-up Attacks . | . . Damage Inflicted 1063 | . 1063 Guns 1019 | . 1019 Cannons . | . . Explosions . | . . Melee . | . . Ramming 44 | . 44 Kinetic 1019 | . 1019 Thermal . | . . Explosive . | . . Electromagnetic . | . . Impact . | . . Slashing . | . . Piercing . | . . Highest Corruption . | . . Average Corruption . | . . Corruption Purged . | . . Corruption Blocked . | . . Overload Shots . | . . Overflow Damage . | . . Projectiles . | . . Explosions . | . . Melee . | . . Knockbacks 1 | . 1 Impact 1 | . 1 Kinetic . | . . Secondary . | . . Self-Inflicted Damage . | . . Shots . | . . Rammed 14 | . 14 Targets Rammed 14 | . 14 Kicked . | . . Crushed . | . . Highest Temperature 26 | . 26 Average Temperature 7 | . 7 Received Heat Transfer 471 | . 471 Siege Activations . | . . Martial Activations . | . . Shielding Activations . | . . Robots Disrupted . | . . Combat Hostiles . | . . Robots Corrupted . | . . Combat Hostiles . | . . Parts Fried . | . . Impact Corruptions . | . . Robots Melted . | . . Combat Hostiles . | . . Parts Melted . | . . Heat Transferred . | . . Parts Sabotaged . | . . Parts Stolen . | . . Parts Stripped . | . . Power Chain Reactions . | . . Alert | -11 -10 ------- Run | Yrd Mat Maximum Alert Level . | . . Low Security (%) 100 | 100 100 Level 1 . | . . Level 2 . | . . Level 3 . | . . Level 4 . | . . Level 5 . | . . High Security . | . . Max Security . | . . Peak Influence 120 | . 120 Initial . | . . Average 32 | . 34 Influence Increases 415 | . 415 Destroy 0b10 Robot/C 280 | . 280 Destroy 0b10 Robot/NC 25 | . 25 Destroy Leader 74 | . 74 Successful Hack 6 | . 6 Lose Combat Pursuer 30 | . 30 Influence Decreases 408 | . 408 Time Decay 328 | . 328 Lost Part 80 | . 80 Squads Dispatched 5 | . 5 Investigation 1 | . 1 Extermination . | . . Reinforcement 4 | . 4 Assault . | . . Garrison . | . . Intercept . | . . Searches Triggered . | . . Construction Impeded . | . . Haulers Reinforced . | . . Active Scanning Responses . | . . Cargo Convoy Interrupts . | . . Stealth | -11 -10 --------- Run | Yrd Mat Distress Signals 1 | . 1 Communications Jammed . | . . Distress Signals . | . . Times Spotted 35 | . 35 Peak Tracking Total 5 | . 5 Tactical Retreats 2 | . 2 Traps | -11 -10 ------- Run | Yrd Mat Traps Triggered 2 | . 2 Indirectly . | . . Trap Hack Attempts . | . . Triggered . | . . Disarmed . | . . Reprogrammed . | . . Reused . | . . Traps Extracted . | . . Installed . | . . Triggered . | . . Machines | -11 -10 ---------- Run | Yrd Mat Machines Disabled . | . . Max in Single Turn . | . . Machines Repaired . | . . Machines Dismantled . | . . Machines Sabotaged . | . . Overloaded Fab Kills . | . . Hacking | -11 -10 --------- Run | Yrd Mat Machines Accessed 2 | . 2 Terminals 2 | . 2 Fabricators . | . . Repair Stations . | . . Recycling Units . | . . Scanalyzers . | . . Garrison Access . | . . Total Hacks 6 | . 6 Successful 1 | . 1 Failed 5 | . 5 Catastrophic 1 | . 1 Database Lockouts . | . . Manual 4 | . 4 Terminals 6 | . 6 Fabricators . | . . Repair Stations . | . . Recycling Units . | . . Scanalyzers . | . . Garrison Access . | . . Terminal Hacks 1 | . 1 Unreport Threat 1 | . 1 Fabricator Hacks . | . . Repair Station Hacks . | . . Recycling Unit Hacks . | . . Scanalyzer . | . . Garrison Access Hacks . | . . Unauthorized Hacks . | . . Terminals . | . . Fabricators . | . . Repair Stations . | . . Recycling Units . | . . Scanalyzers . | . . Garrison Access . | . . Data Cores Recovered . | . . Used . | . . Hacking Detections 2 | . 2 Full Trace Events . | . . Feedback Events . | . . Feedback Blocked . | . . Robot Schematics Acquired . | . . Robots Built . | . . Authchips . | . . Time . | . . Total Robot Build Rating . | . . Part Schematics Acquired . | . . Parts Built . | . . Authchips . | . . Time . | . . Total Part Build Rating . | . . Part Studies Acquired . | . . Parts Repaired . | . . Time . | . . Parts Recycled . | . . Recycled Matter . | . . Retrieved Matter . | . . Retrieved Components . | . . Parts Scanalyzed . | . . Part Schematics Acquired . | . . Parts Damaged . | . . Bothacking | -11 -10 ------------ Run | Yrd Mat Used RIF Installer . | . . Robots Hacked . | . . Non-combat . | . . Combat . | . . Robot Hacks Applied . | . . Relay Couplers Released . | . . Fabnet Peak Effective % . | . . Robots Rewired . | . . Allies Hacked . | . . Hacks Repelled . | . . Allies | -11 -10 -------- Run | Yrd Mat Total Allies . | . . Largest Group . | . . Highest-Rated Group . | . . Highest-Rated Ally . | . . Total Orders . | . . Ally Attacks . | . . Total Damage . | . . Kills . | . . Allies Corrupted . | . . Allies Melted . | . . Intel | -11 -10 ------- Run | Yrd Mat Active Infowar (turns) . | . . Robot Analysis Total . | . . Derelict Logs Recovered . | . . Drone Launches . | . . Drone Recoveries . | . . Exploration | -11 -10 ------------- Run | Yrd Mat Turns Passed 1263 | 92 1171 Spaces Moved 623 | 59 564 Core 9 | 9 . Treads 614 | 50 564 Legs . | . . Wheels . | . . Hover . | . . Flight . | . . Fastest Speed 50 | 50 160 Average Speed 158 | 143 160 Slowest Speed 160 | 160 160 Overloaded Moves . | . . Propulsion Burnouts . | . . Robots Hopped . | . . Potential Cave-ins . | . . Cave-ins Triggered . | . . Exploration Rate (%) 42 | 4 81 Regions Visited 1 Branch Regions . Pre-discovered Areas . | . . Known Exits Taken . | . . Unknown Exits Taken 1 | 1 . Scrap Searched . | . . Spaces Dug . | . . Terrain Destroyed . | . . Melee . | . . Projectile . | . . AOE . | . . Terrain Rammed . | . . Walls Destroyed . | . . Machines Disabled . | . . Actions | -11 -10 --------- Run | Yrd Mat Total 767 | 64 703 Wait 38 | . 38 Move 622 | 58 564 Hop . | . . Pick Up 10 | . 10 Fast Attach 10 | 6 4 Attach 1 | . 1 Detach . | . . Swap 4 | . 4 Drop 5 | . 5 Fire 63 | . 63 Melee . | . . Ram 2 | . 2 Kick . | . . Crush 12 | . 12 Escape Stasis . | . . Rewire . | . . Trap . | . . Miscellaneous . | . . Route ------- -11/Scrapyard -10/Materials (discovered 4 exits: [*Mat x2] / [*Min] / [*Sub]) History --------- Turn | Location | Event 5 | -11/Scrapyard | Discovered new exit (range 13) 93 | -11/Scrapyard | Entered Materials 303 | -10/Materials | Build established: Mutant 336 | -10/Materials | Discovered new exit (range 16) 426 | -10/Materials | Core integrity fell below 50% 513 | -10/Materials | Discovered new exit (range 12) 968 | -10/Materials | Discovered new exit (range 7) 993 | -10/Materials | Derelicts attacked the area 1068 | -10/Materials | Discovered new exit (range 13) 1254 | -10/Materials | Core integrity fell below 20% 1264 | -10/Materials | Destroyed by G-47 Trooper with Particle Gun Last Messages --------------- 01147_ U-05 Engineer lays Concrete. 01182_ ALERT: Hostiles spotted, dispatching reinforcements to Terminal M001. 01207_ Slammed into K-01 Serf. 01212_ Assault Rifle destroyed. 01228_ G-34 Mercenary suffers critical hit (Destroy). 01228_ G-34 Mercenary destroyed. 01230_ Lgt. Treads destroyed. 01236_ Atomic Centrifuge disabled. 01244_ Assault Rifle destroyed. 01246_ Slammed into G-47 Trooper. 01251_ Lgt. Nuclear Core destroyed. 01253_ Slammed into G-47 Trooper. 01254_ Critical hit (Burn: +37). 01255_ Slammed into G-47 Trooper. 01256_ Lgt. Treads destroyed. 01258_ Slammed into G-47 Trooper. 01262_ Hrd. Light Armor Plating destroyed. 01262_ Slammed into G-47 Trooper. Map ----- +----------------------------------------------------+ | | | | | | | ?????????????????????????????????????????????????? | | ?????????????????????????????????????????????????? | | ?????????????????????????????????????????????????? | | ?????????????????????????????????????????????????? | | ?????????????????????????????????????????????????? | | ?????????????????????????????????????????????????? | | ?????????????????????????????????????????????????? | | ??????????????????????? ?????????????????????? | | ??????????????????????? ?????????????????????? | | ??????????????????????? ?????????????????????? | | ??????????????????????? ?????????????????????? | | ???????????????????????# #??????????????????? +? | | ???????????????????????# #?????????????????? #? | | ???????????????????????# #????????????????? ?? | | ???????????????????????# ########??????#### ## | | ???????????????????????# # ! #?????? | | ???????????????????????# # #????? | | ???????????????????????# # """ #????? "T" | | ???????????????????????# # """ #???? ## | | ???????????????????????# # " " !#???? ???? | | ???????????????????????# # % #??? """"????? | | ???????????????????????# g###+####### """""???? | | ???????????????????????# @ *g % """""???? | | ???????????????????????# g #? | | ???##########??????????# [ #? | | ???# #??????????#### #################### | | ???# """ ####??????????#t #??????????# | | ???# """ # ?######## #??????????# | | #### """ # ?# # #??????????# """ | | # # # ?# ! """# #??????????# """ | | # """ ""# """??# """# #??????????# """ !!= | | # """ Y"# """??# """# #??????????# !!= | | # "" ""# ""???# # #??????????# !=[ | | " # ???#* # ##########?# | | %=" #####+#########+## ## ###+###+### | | & | ^^ //* | | ]#* % < ^^ % | | #=%! | | ##"#=####+#########+####+####### #######+### | | ?## [ # # # # #?# "!"|" #??# | | ??# * + # # # T #?#""!"|""#??# | | ??# ## ## # #?#########??# | | ### " ## """ # #????######### | | # #= ## """ # #??#? # | | #! !#%= ### """ # #??# # | | ##!! !## !* #?# ########??# """ """ # | | ?#######![ #?# #?????????# """ """ # | +----------------------------------------------------+ Best States ------------- Heat Dissipation 25 Energy Generation 14 Energy Capacity 250 Matter Stores 300 Matter Capacity 300 Sight Range 16 Terrain Scan Density 10 Armor Coverage 150 Evasion (%) 40 Recoil Reduction 2 Item Schematics ----------------- None Robot Schematics ------------------ None Fabricated ------------ Nothing Repaired ---------- Nothing Studied --------- None Alien Tech Used ----------------- None Achievements -------------- None Challenges ------------ None Game ------ Seed AssaultHybridReplica Manual? 0 Play Time 00:11:19 Cumulative 46.2 hours Start 2025.12.07 @ 14:33:56 End 2025.12.07 @ 14:40:04 Sessions 1 Manual Loads 0 Difficulty Rogue Special Mode None Game No. 57 Rogue 57 Adventurer 0 Explorer 0 Win Type - Total 1 Types 1/0/0/0/0/0/0/0/0/0 Lore% 41 Gallery% 33 Achievement% 32 Wizard Run 0 Options --------- Layout 1 ASCII 0 Keyboard 0 Movement Numpad Keybinds 0 Fullscreen 1 Font 24/Smallcaps Map View 50x35 Zoom Use 0% Tactical HUD 1 Map Filters NONE Filters NONE Steam 0 RUN: e04f9960-b4cd-41f3-b5bc-4e9e2ab2fd8b